bitfinex/quotes_SOLUSD_20251130
["timestamp","ask_amount","ask_price","bid_price","bid_amount"]
[1764481063746,2.1009426,135.85,135.82,62.8]
[1764481063948,2.1009426,135.85,135.83,0.66]
[1764481064466,7.36105999,135.85,135.83,0.66]
[1764481072277,9.46200259,135.85,135.8,2.1009426]
[1764481072478,10.07200259,135.85,135.82,0.66]
[1764481072657,28.47465257,135.85,135.82,0.66]
[1764481076984,27.86465257,135.85,135.82,0.66]
[1764481077483,7.36105999,135.85,135.82,0.66]
[1764481083883,7.36061172,135.86,135.82,11.30422608]
[1764481084092,7.36061172,135.86,135.83,3.28178063]
[1764481084390,7.36061172,135.86,135.83,3.99178063]
[1764481084601,7.36061172,135.86,135.84,0.71]
[1764481084967,7.35997644,135.87,135.84,0.71]
[1764481090076,7.35949008,135.88,135.84,11.3531918]
[1764481090394,7.35949008,135.88,135.85,3.28178063]
[1764481090580,7.35949008,135.88,135.85,3.99178063]
[1764481090775,7.35949008,135.88,135.86,0.71]
[1764481091283,16.308864,135.9,135.86,3.99178063]
[1764481091490,23.66738987,135.9,135.86,7.23178063]
[1764481091787,10.59768101,135.92,135.87,3.99178063]
[1764481092195,10.59768101,135.92,135.88,0.71]
[1764481093296,11.20768101,135.92,135.88,0.71]
[1764481093491,14.48946164,135.92,135.88,0.71]
[1764481094477,14.29543348,135.92,135.88,0.71]
[1764481095699,13.68543348,135.92,135.88,0.71]
[1764481097775,14.29543348,135.92,135.88,0.71]
[1764481099901,10.6399267,135.91,135.88,0.71]
[1764481101101,7.35814607,135.91,135.88,0.71]
[1764481105404,10.6399267,135.91,135.88,0.71]
[1764481106516,7.35814607,135.91,135.88,0.71]
[1764481110082,7.35814607,135.91,135.88,8.06934856]
[1764481110294,7.35814607,135.91,135.89,0.66]
[1764481111009,10.40332844,135.92,135.89,0.66]
[1764481111603,11.01332844,135.92,135.89,0.66]
[1764481113799,10.40332844,135.92,135.89,0.66]
[1764481114000,10.40332844,135.92,135.89,8.0188327]
[1764481114517,19.59064463,135.93,135.9,0.66]
[1764481114706,16.308864,135.93,135.9,3.94178063]
[1764481115089,16.308864,135.93,135.91,0.66]
[1764481116824,16.308864,135.93,135.91,8.01780242]
[1764481117324,16.308864,135.93,135.92,0.66]
[1764481120817,10.63800999,135.94,135.92,0.66]
[1764481122307,10.63800999,135.94,135.9,62.8]
[1764481122308,3.89178063,135.93,135.9,62.8]
[1764481122500,3.28178063,135.92,135.9,63.46]
[1764481124619,11.24918603,135.92,135.89,0.66]
[1764481125619,10.63918603,135.92,135.89,0.66]
[1764481126802,7.3574054,135.92,135.89,0.66]
[1764481127735,10.63918603,135.92,135.89,0.66]
[1764481128121,7.3574054,135.92,135.89,8.01877609]
[1764481128533,7.3574054,135.92,135.9,0.66]
[1764481129030,14.48824754,135.94,135.9,0.66]
[1764481129235,11.20646691,135.94,135.9,0.66]
[1764481130110,3.24,135.94,135.9,11.29995241]
[1764481130311,7.96577734,135.95,135.9,14.53995241]
[1764481130613,7.96577734,135.95,135.91,0.66]
[1764481130818,11.24755797,135.95,135.91,0.66]
[1764481133435,7.96577734,135.95,135.91,0.66]
[1764481135515,11.24755797,135.95,135.91,0.66]
[1764481136116,0.61,135.94,135.91,0.66]
[1764481136336,3.89178063,135.94,135.9,62.8]
[1764481136533,7.35726898,135.92,135.9,62.8]
[1764481136711,7.35726898,135.92,135.9,63.5]
[1764481137914,7.96726898,135.92,135.9,62.8]
[1764481141248,7.35726898,135.92,135.9,63.5]
[1764481141945,7.35726898,135.92,135.9,0.7]
[1764481151046,10.59693691,135.93,135.9,0.7]
[1764481155127,16.308864,135.9,135.86,0.7]
[1764481155326,2.09815161,135.89,135.86,0.7]
[1764481155967,22.25701561,135.9,135.86,0.7]
[1764481156250,16.308864,135.89,135.86,0.7]
[1764481157028,23.66791806,135.89,135.86,0.7]
[1764481169166,7.35905406,135.89,135.86,10.15852453]
[1764481169539,7.35905406,135.89,135.87,0.71]
[1764481171966,5.33815161,135.9,135.87,0.71]
[1764481171967,2.70815161,135.92,135.87,13.40792747]
[1764481172155,2.70815161,135.92,135.87,11.30977586]
[1764481172472,2.70815161,135.92,135.88,0.71]
[1764481173244,9.45596192,135.91,135.88,0.71]
[1764481173552,10.06596192,135.91,135.88,0.71]
[1764481173952,2.09815161,135.9,135.88,0.71]
[1764481174169,2.09815161,135.9,135.87,0.71]
[1764481174470,10.06596192,135.91,135.87,0.71]
[1764481178652,2.70815161,135.9,135.87,0.71]
[1764481179258,0.61,135.9,135.87,0.71]
[1764481179672,25.75233609,135.91,135.87,0.71]
[1764481179876,26.36233609,135.91,135.87,0.71]
[1764481180058,28.4604877,135.91,135.87,0.71]
[1764481180256,0.61,135.9,135.87,0.71]
[1764481181573,27.8504877,135.91,135.87,0.71]
[1764481181775,7.96883326,135.9,135.87,0.71]
[1764481182274,7.35883326,135.9,135.87,10.16800914]
[1764481182753,7.35883326,135.9,135.88,0.71]
[1764481183168,16.308864,135.9,135.88,0.71]
[1764481186187,23.6672381,135.9,135.88,0.71]
[1764481202187,7.35800404,135.91,135.88,0.71]
[1764481202396,7.3562962,135.94,135.89,5.33815161]
[1764481202682,7.3562962,135.94,135.9,2.09815161]
[1764481202986,7.3562962,135.94,135.91,0.67]
[1764481203567,7.9662962,135.94,135.91,0.67]
[1764481204876,11.24391051,135.94,135.91,0.67]
[1764481207596,7.3562962,135.94,135.91,0.67]
[1764481209600,7.3562962,135.94,135.91,0.67]
[1764481213201,7.35582807,135.95,135.91,74.10526363]
[1764481213590,7.35582807,135.95,135.92,0.67]
[1764481214387,16.308864,135.96,135.92,0.67]
[1764481214696,16.308864,135.96,135.92,7.18761431]
[1764481214997,16.308864,135.96,135.92,14.54457539]
[1764481215196,16.308864,135.96,135.93,0.67]
[1764481216595,7.35473556,135.97,135.93,0.67]
[1764481216905,10.63234987,135.97,135.93,0.67]
[1764481217081,10.63234987,135.97,135.93,8.02669725]
[1764481217281,10.63234987,135.97,135.94,0.67]
[1764481218082,14.07187083,135.98,135.94,0.67]
[1764481218497,14.68187083,135.98,135.94,0.67]
[1764481219190,11.2425618,135.97,135.94,0.67]
[1764481219502,10.6325618,135.97,135.94,0.67]
[1764481220700,14.07183096,135.98,135.94,8.02595727]
[1764481221102,14.68183096,135.98,135.95,0.67]
[1764481222003,14.07183096,135.98,135.95,0.67]
[1764481222212,10.79421665,135.98,135.95,0.67]
[1764481222702,10.79411535,135.98,135.95,8.02544102]
[1764481223010,10.79411535,135.98,135.95,0.67]
[1764481224783,3.44,135.98,135.95,8.02539712]
[1764481224986,3.44,135.98,135.96,0.67]
[1764481225284,0.2,135.98,135.96,0.67]
[1764481228905,4.08761431,135.98,135.95,70.15539712]
[1764481229112,4.08761431,135.98,135.95,70.83539712]
[1764481230210,11.44164918,135.98,135.95,70.83539712]
[1764481230512,3.47761431,135.98,135.96,0.68]
[1764481231911,0.2,135.98,135.96,0.68]
[1764481238202,7.55403001,135.98,135.96,0.68]
[1764481242404,0.61,135.97,135.94,11.27579576]
[1764481242627,11.44164432,135.98,135.95,0.68]
[1764481243830,10.83164432,135.98,135.95,0.68]
[1764481248829,10.83164432,135.98,135.95,63.48]
[1764481249135,10.83164432,135.98,135.96,0.68]
[1764481252024,7.55403001,135.98,135.96,0.68]
[1764481253537,0.61,135.97,135.95,62.8]
[1764481253727,11.44164432,135.98,135.95,63.48]
[1764481253923,10.83164432,135.98,135.95,62.8]
[1764481254128,0.61,135.97,135.95,62.8]
[1764481254323,11.44164432,135.98,135.95,63.48]
[1764481254639,11.44164432,135.98,135.95,0.68]
[1764481266557,10.26062315,135.98,135.95,0.68]
[1764481271927,9.65062315,135.98,135.95,0.68]
[1764481280361,7.55403001,135.98,135.95,0.68]
[1764481281562,7.55403001,135.98,135.95,2.77659314]
[1764481281940,7.55403001,135.98,135.96,0.71]
[1764481302272,9.65062315,135.98,135.96,0.71]
[1764481303673,0.2,135.98,135.96,0.71]
[1764481303863,2.29659314,135.98,135.96,0.71]
[1764481304267,0.2,135.98,135.96,0.71]
[1764481305281,7.55415218,135.98,135.96,0.71]
[1764481310700,7.55415218,135.98,135.96,20.458864]
[1764481310866,7.55415218,135.98,135.97,0.66]
[1764481311579,7.55415218,135.98,135.96,19.748864]
[1764481311793,7.55415218,135.98,135.96,20.408864]
[1764481313266,7.55415218,135.98,135.97,0.66]
[1764481313876,7.55415218,135.98,135.96,20.408864]
[1764481314069,7.55415218,135.98,135.96,19.748864]
[1764481314269,7.55415218,135.98,135.97,0.66]
[1764481315860,0.2,135.98,135.97,0.66]
[1764481316284,0.2,135.98,135.96,19.748864]
[1764481316476,0.2,135.98,135.96,20.438864]
[1764481316785,0.2,135.98,135.97,0.69]
[1764481317493,7.55402265,135.98,135.97,0.69]
[1764481318296,0.2,135.98,135.97,0.69]
[1764481320680,0.2,135.98,135.97,22.79188971]
[1764481323473,0.2,135.98,135.97,32.24304635]
[1764481326576,0.2,135.98,135.97,33.42035302]
[1764481328909,0.2,135.98,135.97,96.22035302]
[1764481332385,0.2,135.98,135.97,99.46035302]
[1764481334510,0.2,135.98,135.97,96.18645321]
[1764481334712,0.2,135.98,135.97,99.46035302]
[1764481336690,0.2,135.98,135.97,96.22035302]
[1764481336886,0.2,135.98,135.97,99.46035302]
[1764481338115,0.2,135.98,135.97,96.18645321]
[1764481338487,0.2,135.98,135.97,99.46035302]
[1764481345622,0.2,135.98,135.97,96.18645321]
[1764481347098,0.2,135.98,135.97,92.94645321]
[1764481347298,0.2,135.98,135.97,96.18645321]
[1764481350107,0.2,135.98,135.97,99.46035302]
[1764481351922,0.2,135.98,135.97,108.27029794]
[1764481353812,0.2,135.98,135.97,101.75639813]
[1764481354032,0.2,135.98,135.97,108.27029794]
[1764481358525,0.2,135.98,135.97,96.22035302]
[1764481358728,0.2,135.98,135.97,99.46035302]
[1764481378330,0.2,135.98,135.97,108.27029794]
[1764481379322,0.2,135.99,135.98,12.36816787]
[1764481379530,0.2,135.99,135.98,13.03816787]
[1764481379931,0.2,135.99,135.98,15.98378442]
[1764481380328,0.2,135.99,135.98,23.33780707]
[1764481381124,0.2,135.99,135.98,26.55780707]
[1764481381523,0.2,135.99,135.98,17.46353901]
[1764481382342,0.2,135.99,135.98,80.26353901]
[1764481385658,0.2,135.99,135.98,73.7696392]
[1764481385829,0.2,135.99,135.98,80.26353901]
[1764481386566,0.2,135.99,135.98,79.08417577]
[1764481387128,0.2,135.99,135.98,87.89412069]
[1764481390238,0.2,135.99,135.98,88.17844383]
[1764481391537,0.2,136.0,135.99,9.09426806]
[1764481391747,0.2,136.0,135.99,74.65880463]
[1764481391953,0.2,136.0,135.99,75.39415281]
[1764481392133,0.2,136.02,136.01,8.80994492]
[1764481392459,0.2,136.02,136.01,76.72448149]
[1764481392758,0.2,136.02,136.01,80.33966427]
[1764481393153,0.2,136.02,136.01,87.69206482]
[1764481395863,0.2,136.02,136.01,87.97638796]
[1764481409274,0.2,136.03,136.02,62.88432314]
[1764481409479,0.2,136.03,136.02,65.64885971]
[1764481409861,0.2,136.03,136.02,68.59360885]
[1764481410483,0.2,136.03,136.02,75.94546887]
[1764481410650,1e-08,136.03,136.02,84.75541379]
[1764481413983,1e-08,136.03,136.02,87.97541379]
[1764481414570,1e-08,136.03,136.02,88.71059979]
[1764481415082,1e-08,136.04,136.03,63.55432313]
[1764481415382,1e-08,136.04,136.03,90.76766862]
[1764481415678,1e-08,136.04,136.03,93.71198425]
[1764481415859,0.2,136.07,136.05,16.308864]
[1764481416059,1e-08,136.07,136.06,15.07880463]
[1764481416482,1e-08,136.07,136.06,18.02247022]
[1764481416685,1e-08,136.07,136.06,12.70793365]
[1764481416877,0.61000001,136.07,136.06,17.06814708]
[1764481417182,0.61000001,136.07,136.06,2.94366559]
[1764481417480,0.61000001,136.07,136.06,6.16366559]
[1764481417870,0.61000001,136.07,136.06,13.51336425]
[1764481421603,1e-08,136.07,136.06,13.51336425]
[1764481422505,1e-08,136.07,136.06,15.60790082]
[1764481423089,0.61000001,136.07,136.06,15.60790082]
[1764481424100,0.61000001,136.07,136.06,13.51336425]
[1764481426395,0.61000001,136.07,136.06,10.29336425]
[1764481426595,0.61000001,136.07,136.06,13.51336425]
[1764481428897,0.61000001,136.07,136.06,10.29336425]
[1764481429078,0.61000001,136.07,136.06,13.51336425]
[1764481431200,0.61000001,136.07,136.06,10.56969866]
[1764481435810,0.61000001,136.07,136.06,73.36969866]
[1764481439486,1e-08,136.07,136.06,73.36969866]
[1764481439687,1e-08,136.07,136.06,74.02969866]
[1764481440420,1e-08,136.07,136.06,73.36969866]
[1764481441812,1e-08,136.07,136.06,74.02969866]
[1764481451219,1e-08,136.07,136.06,70.80969866]
[1764481451524,1e-08,136.07,136.06,74.02969866]
[1764481455801,0.61000001,136.07,136.06,70.14969866]
[1764481456000,0.61000001,136.07,136.06,73.36969866]
[1764481456616,0.61000001,136.07,136.06,70.14969866]
[1764481456816,0.61000001,136.07,136.06,73.36969866]
[1764481460126,0.61000001,136.07,136.05,7.35020678]
[1764481460127,3.87991442,136.07,136.05,7.35020678]
[1764481460434,3.87991442,136.07,136.05,10.57020678]
[1764481460728,0.61,136.06,136.05,10.57020678]
[1764481461914,0.61,136.06,136.05,7.35020678]
[1764481462114,0.61,136.06,136.05,10.57020678]
[1764481462536,0.61,136.06,136.03,7.35088504]
[1764481462726,3.87991441,136.06,136.04,3.22]
[1764481463106,0.61,136.05,136.04,3.22]
[1764481464418,3.87991441,136.06,136.04,3.22]
[1764481465129,0.61,136.05,136.04,3.22]
[1764481465925,7.34915921,136.07,136.04,3.22]
[1764481466240,0.61,136.06,136.04,3.22]
[1764481474441,0.61,136.06,136.03,70.86088504]
[1764481474642,0.61,136.06,136.04,3.22]
[1764481475221,0.61,136.06,136.03,70.86088504]
[1764481475420,0.61,136.06,136.04,3.22]
[1764481475714,0.61,136.06,136.04,3.93]
[1764481478645,0.61,136.06,136.04,0.71]
[1764481478846,0.61,136.06,136.04,3.93]
[1764481480347,0.61,136.06,136.04,0.71]
[1764481480551,0.61,136.06,136.04,3.93]
[1764481481254,3.87991441,136.06,136.03,70.15088504]
[1764481481551,3.87991441,136.06,136.03,73.37088504]
[1764481481854,0.61,136.05,136.03,73.37088504]
[1764481484659,0.61,136.05,136.03,73.37088504]
[1764481490356,0.61,136.05,136.03,66.02]
[1764481490533,3.87991441,136.05,136.03,66.02]
[1764481491236,0.61,136.05,136.03,66.02]
[1764481492334,0.61,136.05,136.03,3.22]
[1764481492636,11.23021014,136.05,136.02,77.34962417]
[1764481492849,11.23021014,136.05,136.02,84.70147652]
[1764481496156,0.61,136.04,136.02,62.8]
[1764481496460,3.87991441,136.04,136.01,3.22]
[1764481496867,3.87991441,136.04,136.01,3.89]
[1764481497159,0.61,136.04,136.01,3.89]
[1764481497360,7.96131538,136.04,136.01,3.89]
[1764481497668,0.61,136.03,136.01,3.22]
[1764481500255,7.96159628,136.03,136.01,3.22]
[1764481500660,7.96159628,136.03,136.01,3.89]
[1764481500967,7.35159628,136.03,136.01,3.89]
[1764481503058,7.35077918,136.04,135.99,29.44865434]
[1764481503260,0.61,136.02,136.0,3.22]
[1764481503461,0.61,136.03,135.99,84.89537838]
[1764481503654,3.26991441,136.02,135.97,0.67]
[1764481503850,0.61,136.03,135.96,29.45524478]
[1764481503851,20.18877841,136.01,135.96,29.45524478]
[1764481504162,20.18877841,136.01,135.96,0.67]
[1764481504466,0.61,136.0,135.97,0.67]
[1764481505066,7.96314547,136.0,135.97,0.67]
[1764481505264,7.96314547,136.0,135.97,3.93991441]
[1764481508061,7.96314547,136.0,135.97,7.15991441]
[1764481508751,7.96314547,136.0,135.97,3.89]
[1764481508956,7.96314547,136.0,135.97,7.15991441]
[1764481510252,0.61,135.99,135.97,3.26991441]
[1764481510584,0.61,135.99,135.97,2.09565643]
[1764481511251,0.61,135.99,135.96,13.34066895]
[1764481512155,7.9635729,135.99,135.95,2.76565643]
[1764481512354,7.9635729,135.99,135.96,3.22]
[1764481512762,7.9635729,135.99,135.96,3.89]
[1764481512961,7.9635729,135.99,135.96,5.98565643]
[1764481513158,22.10188971,136.0,135.97,2.76565643]
[1764481513455,16.308864,136.0,135.97,2.76565643]
[1764481513653,16.308864,136.0,135.98,0.67]
[1764481514174,23.66190487,136.0,135.98,0.67]
[1764481514372,24.27190487,136.0,135.98,0.67]
[1764481517862,24.27190487,136.0,135.97,0.67]
[1764481518888,23.66190487,136.0,135.97,0.67]
[1764481519274,7.35254307,136.01,135.98,2.09565643]
[1764481519779,7.35254307,136.01,135.99,0.67]
[1764481519983,7.96254307,136.01,135.97,94.35022013]
[1764481520168,7.96254307,136.01,135.98,0.67]
[1764481520987,10.0581995,136.01,135.98,0.67]
[1764481527571,32.16008921,136.01,135.98,0.67]
[1764481528766,10.0581995,136.01,135.98,0.67]
[1764481529166,7.96254307,136.01,135.98,0.67]
[1764481531982,30.06443278,136.01,135.98,0.67]
[1764481532595,7.96254307,136.01,135.98,0.67]
[1764481533696,32.16008921,136.01,135.98,0.67]
[1764481533894,10.0581995,136.01,135.98,0.67]
[1764481537090,7.96254307,136.01,135.98,0.67]
[1764481538776,0.61,136.01,135.98,0.67]
[1764481539397,22.10188971,136.02,135.98,10.11961559]
[1764481539594,45.25956954,136.03,135.99,2.09565643]
[1764481539595,37.90777878,136.03,135.99,2.09565643]
[1764481539792,22.10026151,136.03,136.0,6.04565643]
[1764481539993,5.94565644,136.07,136.01,2.80565643]
[1764481540193,16.308864,136.04,136.01,2.80565643]
[1764481540394,16.308864,136.04,136.02,0.71]
[1764481540581,7.35023888,136.05,136.02,0.71]
[1764481540781,7.96023888,136.05,136.02,0.71]
[1764481542581,10.05696316,136.04,136.0,95.4677856]
[1764481542787,10.05696316,136.04,136.01,0.71]
[1764481543704,9.44696316,136.04,136.01,0.71]
[1764481544009,7.35130673,136.04,136.01,0.71]
[1764481544710,9.44696316,136.04,136.01,0.71]
[1764481544912,10.05696316,136.04,136.01,0.71]
[1764481552016,9.44696316,136.04,136.01,0.71]
[1764481553614,7.35130673,136.04,136.01,0.71]
[1764481554605,7.96130673,136.04,136.01,0.71]
[1764481555512,0.61,136.03,136.0,3.92]
[1764481555696,7.96130673,136.04,136.01,0.7]
[1764481559510,7.35130673,136.04,136.01,0.7]
[1764481560518,7.96130673,136.04,136.01,0.7]
[1764481561905,2.70565643,136.03,136.0,0.7]
[1764481564424,2.70565643,136.02,135.98,8.05358052]
[1764481564597,2.70565643,136.02,135.99,0.7]
[1764481565520,10.05785694,136.02,135.99,0.7]
[1764481565716,0.61,136.01,135.99,0.7]
[1764481565920,0.61,136.01,135.98,11.27358052]
[1764481567730,10.05851757,136.01,135.98,0.7]
[1764481570530,11.23747092,136.01,135.98,0.7]
[1764481572026,10.62747092,136.01,135.98,0.7]
[1764481574142,7.35286114,136.01,135.98,0.7]
[1764481574644,10.62747092,136.01,135.98,0.7]
[1764481575144,7.35286114,136.01,135.98,0.7]
[1764481577413,10.62747092,136.01,135.98,0.7]
[1764481578445,11.23747092,136.01,135.98,0.7]
[1764481583955,10.62747092,136.01,135.98,0.7]
[1764481589448,7.35286114,136.01,135.98,0.7]
[1764481597263,10.62747092,136.01,135.98,0.7]
[1764481601653,7.35286114,136.01,135.98,0.7]
[1764481612575,29.45475085,136.01,135.98,0.7]
[1764481613557,7.35102271,136.04,136.0,3.27460978]
[1764481613863,7.35102271,136.04,136.01,3.27460978]
[1764481614062,7.35102271,136.04,136.01,3.99460978]
[1764481614260,7.35102271,136.04,136.02,0.72]
[1764481615376,10.62563249,136.04,136.02,0.72]
[1764481615851,18.65913127,136.06,136.02,0.72]
[1764481615852,7.3499094,136.06,136.02,0.72]
[1764481616057,17.06386875,136.07,136.03,3.27460978]
[1764481616371,10.56925897,136.07,136.03,9.76921956]
[1764481616557,10.56925897,136.07,136.04,0.72]
[1764481616956,1e-08,136.07,136.04,8.07072671]
[1764481617173,1e-08,136.07,136.04,3.94]
[1764481617354,1e-08,136.07,136.05,0.72]
[1764481617755,7.34928953,136.07,136.05,0.72]
[1764481618467,10.62389931,136.07,136.03,3.94]
[1764481618662,7.34998644,136.06,136.04,0.72]
[1764481620472,7.95998644,136.06,136.03,8.06998644]
[1764481620674,7.34998644,136.06,136.04,0.72]
[1764481622089,1e-08,136.07,136.04,3.99460978]
[1764481622467,1e-08,136.07,136.05,0.72]
[1764481633689,1e-08,136.07,136.05,2.81335053]
[1764481633891,1e-08,136.07,136.06,0.72]
[1764481643705,0.61000001,136.07,136.04,22.05207118]
[1764481643908,0.61000001,136.07,136.04,8.0707742]
[1764481644699,1e-08,136.07,136.05,0.72]
[1764481650699,2.70335054,136.07,136.04,3.22]
[1764481651090,0.61,136.06,136.04,3.22]
[1764481651295,24.18547469,136.07,136.04,3.22]
[1764481651501,24.79547469,136.07,136.04,3.94]
[1764481652316,7.34969866,136.06,136.04,3.94]
[1764481652918,7.34969866,136.06,136.04,0.72]
[1764481655420,16.308864,136.04,136.03,62.8]
[1764481655717,18.40221453,136.04,136.02,3.22]
[1764481655907,7.3493758,136.07,136.04,0.72]
[1764481656097,25.7222721,136.07,136.04,0.72]
[1764481656298,27.81562263,136.07,136.04,0.72]
[1764481656624,31.03562263,136.07,136.04,0.72]
[1764481656920,53.12937378,136.07,136.04,0.72]
[1764481659501,2.70335053,136.06,136.03,0.72]
[1764481659702,53.73937378,136.07,136.03,0.72]
[1764481660526,2.09335053,136.06,136.03,0.72]
[1764481660711,53.12937378,136.07,136.03,0.72]
[1764481660920,28.9422721,136.07,136.03,2.81335053]
[1764481661120,28.9422721,136.07,136.03,24.90547468]
[1764481661316,28.9422721,136.07,136.04,0.72]
[1764481663433,31.64562263,136.07,136.04,0.72]
[1764481663724,28.9422721,136.07,136.04,0.72]
[1764481666227,25.7222721,136.07,136.04,0.72]
[1764481669134,25.7222721,136.07,136.04,3.94]
[1764481669320,25.7222721,136.07,136.05,0.72]
[1764481669729,7.3493758,136.07,136.05,0.72]
[1764481670123,1e-08,136.07,136.05,0.72]
[1764481672114,1e-08,136.07,136.06,2.09335053]
[1764481672728,1e-08,136.07,136.06,2.81335053]
[1764481672929,1e-08,136.07,136.06,5.75809967]
[1764481673110,1e-08,136.07,136.06,8.99809967]
[1764481674308,1e-08,136.07,136.06,16.34779833]
[1764481676227,1e-08,136.07,136.06,14.2544478]
[1764481676423,1e-08,136.07,136.06,79.14779833]
[1764481678340,1e-08,136.07,136.06,66.46474914]
[1764481678527,1e-08,136.07,136.06,66.74]
[1764481679742,1e-08,136.07,136.06,63.52]
[1764481679941,1e-08,136.07,136.04,9.64166281]
[1764481680149,1e-08,136.07,136.06,0.67]
[1764481683747,1e-08,136.07,136.04,10.57066115]
[1764481683948,1e-08,136.07,136.05,0.67]
[1764481687655,0.61000001,136.07,136.04,7.35066115]
[1764481687828,0.61000001,136.07,136.04,11.24066115]
[1764481688028,0.61000001,136.07,136.04,8.02066115]
[1764481688729,2.98767368,136.07,136.03,70.82110518]
[1764481689065,2.98767368,136.07,136.03,8.02110518]
[1764481689265,0.61,136.06,136.03,8.02110518]
[1764481689630,7.95980962,136.06,136.03,8.02110518]
[1764481690158,7.95980962,136.06,136.03,0.67]
[1764481692328,0.61,136.05,136.02,10.11514876]
[1764481692532,16.308864,136.06,136.04,2.09335053]
[1764481692741,7.34927629,136.07,136.04,2.09335053]
[1764481693052,7.95927629,136.07,136.04,0.67]
[1764481697569,25.72217259,136.07,136.03,3.27144931]
[1764481697869,32.8436219,136.07,136.04,0.67]
[1764481698037,29.57217259,136.07,136.04,0.67]
[1764481701655,32.8436219,136.07,136.04,0.67]
[1764481702561,28.96217259,136.07,136.04,0.67]
[1764481702736,7.34927629,136.07,136.04,3.94144931]
[1764481703139,7.34927629,136.07,136.05,0.67]
[1764481705760,7.34927629,136.07,136.03,10.62263305]
[1764481706061,7.95927629,136.07,136.04,0.67]
[1764481706965,26.33217259,136.07,136.04,0.67]
[1764481712074,25.72217259,136.07,136.04,0.67]
[1764481712973,26.33217259,136.07,136.04,0.67]
[1764481713770,25.72217259,136.07,136.04,0.67]
[1764481717048,26.33217259,136.07,136.04,0.67]
[1764481717258,25.72217259,136.07,136.04,0.67]
[1764481717453,15.06886401,136.08,136.06,3.27144931]
[1764481717784,0.2,136.09,136.07,9.78289862]
[1764481718077,0.2,136.09,136.08,8.80994492]
[1764481718276,0.2,136.09,136.08,6.87533155]
[1764481719182,0.2,136.09,136.08,10.11533155]
[1764481724678,0.2,136.09,136.08,6.18388224]
[1764481724864,0.2,136.09,136.08,9.45533155]
[1764481725658,0.2,136.09,136.08,2.94388224]
[1764481725855,0.9,136.09,136.06,3.24]
[1764481726385,0.7,136.08,136.06,6.51144931]
[1764481731067,0.7,136.08,136.05,3.27144931]
[1764481731268,0.7,136.08,136.05,6.51144931]
[1764481732794,8.04863004,136.08,136.05,6.51144931]
[1764481732974,8.04863004,136.08,136.04,3.93144931]
[1764481733175,0.7,136.07,136.03,3.27144931]
[1764481734470,8.04961246,136.07,136.03,3.27144931]
[1764481734794,8.04961246,136.07,136.03,3.93144931]
[1764481734994,0.7,136.06,136.03,3.93144931]
[1764481735581,0.7,136.06,136.03,11.28273227]
[1764481735970,0.7,136.06,136.04,3.27144931]
[1764481737073,0.7,136.06,136.03,11.28273227]
[1764481738300,8.04978131,136.06,136.02,10.59171448]
[1764481738488,8.04978131,136.06,136.02,3.24]
[1764481738793,0.67,136.05,136.02,70.02144931]
[1764481738997,0.67,136.05,136.02,69.31144931]
[1764481739490,0.67,136.05,136.02,77.37315093]
[1764481741118,0.67,136.05,136.03,3.27144931]
[1764481743202,0.67,136.05,136.02,77.37315093]
[1764481743407,0.67,136.05,136.02,70.15170162]
[1764481744580,0.67,136.05,136.02,73.42315093]
[1764481744802,0.67,136.05,136.02,10.62315093]
[1764481745284,0.67,136.05,136.02,7.35170162]
[1764481749210,8.0202559,136.05,136.02,7.35170162]
[1764481750104,8.0202559,136.05,136.01,14.57362582]
[1764481750309,0.67,136.04,136.01,14.57362582]
[1764481750603,0.67,136.04,136.01,77.37362582]
[1764481754619,0.67,136.04,136.01,77.37362582]